[Event "Titled Tuesday Blitz July 18 Early 2023"]
[White "Pershina, Elena"]
[Black "Goswami, Vedant"]
[WhiteFideId "24147516"]
[BlackFideId "5003725"]
[WhiteElo "2271"]
[BlackElo "2401"]
[Result "1-0"]
[Round "7"]
[TimeControl "180+2"]
[Date "2023.07.18"]
[WhiteClock "0:01:37"]
[BlackClock "0:01:54"]
[Board "151"]

1. c4 {[%clk 0:03:00]}  a6 {[%clk 0:02:58]} 2. d4 {[%clk 0:02:59]}  c6 {[%clk 0:02:58]} 3. e4 {[%clk 0:02:57]}  d5 {[%clk 0:02:56]} 4. cxd5 {[%clk 0:02:56]}  cxd5 {[%clk 0:02:56]} 5. e5 {[%clk 0:02:56]}  Nc6 {[%clk 0:02:55]} 6. Nc3 {[%clk 0:02:55]}  Bf5 {[%clk 0:02:54]} 7. g4 {[%clk 0:02:50]}  Bg6 {[%clk 0:02:51]} 8. h4 {[%clk 0:02:50]}  h5 {[%clk 0:02:51]} 9. e6 {[%clk 0:02:31]}  Nf6 {[%clk 0:02:45]} 10. Bd3 {[%clk 0:02:19]}  Qd6 {[%clk 0:02:36]} 11. Bxg6 {[%clk 0:02:15]}  Qxe6+ {[%clk 0:02:35]} 12. Qe2 {[%clk 0:02:01]}  Qxe2+ {[%clk 0:02:32]} 13. Ngxe2 {[%clk 0:02:01]}  fxg6 {[%clk 0:02:31]} 14. g5 {[%clk 0:02:01]}  Ne4 {[%clk 0:02:21]} 15. Nxd5 {[%clk 0:02:00]}  O-O-O {[%clk 0:02:19]} 16. Nb6+ {[%clk 0:01:47]}  Kc7 {[%clk 0:02:16]} 17. Nc4 {[%clk 0:01:45]}  Nxd4 {[%clk 0:02:11]} 18. Bf4+ {[%clk 0:01:44]}  Nd6 {[%clk 0:02:02]} 19. Nxd4 {[%clk 0:01:42]}  b5 {[%clk 0:01:58]} 20. Nxd6 {[%clk 0:01:37]}  exd6 {[%clk 0:01:54]} 21. Ne6+ {[%clk 0:01:37]} 1-0


[Site "https://www.chess.com"]

[Event "Titled Tuesday Blitz July 18 Early 2023"]
[White "arturdailima"]
[Black "Silva Lucena, Cristian"]
[BlackFideId "2232588"]
[WhiteElo "2264"]
[BlackElo "2395"]
[Result "1-0"]
[Round "7"]
[TimeControl "180+2"]
[Date "2023.07.18"]
[WhiteClock "0:02:29"]
[BlackClock "0:00:33"]
[Board "152"]

1. e4 {[%clk 0:02:56]}  e5 {[%clk 0:02:59]} 2. Nf3 {[%clk 0:02:57]}  Nc6 {[%clk 0:02:59]} 3. Bc4 {[%clk 0:02:57]}  Bc5 {[%clk 0:02:57]} 4. c3 {[%clk 0:02:58]}  Nf6 {[%clk 0:02:56]} 5. d4 {[%clk 0:02:58]}  exd4 {[%clk 0:02:56]} 6. e5 {[%clk 0:02:59]}  d5 {[%clk 0:02:54]} 7. Bb5 {[%clk 0:03:00]}  Ne4 {[%clk 0:02:51]} 8. cxd4 {[%clk 0:03:00]}  Bb6 {[%clk 0:02:47]} 9. Nc3 {[%clk 0:03:00]}  f5 {[%clk 0:02:44]} 10. exf6 {[%clk 0:02:56]}  Nxf6 {[%clk 0:02:34]} 11. O-O {[%clk 0:02:55]}  O-O {[%clk 0:02:32]} 12. h3 {[%clk 0:02:52]}  Ne4 {[%clk 0:02:22]} 13. Bxc6 {[%clk 0:02:46]}  bxc6 {[%clk 0:02:20]} 14. Ne5 {[%clk 0:02:46]}  Nxc3 {[%clk 0:01:37]} 15. bxc3 {[%clk 0:02:46]}  Qf6 {[%clk 0:01:33]} 16. Be3 {[%clk 0:02:44]}  Ba5 {[%clk 0:01:26]} 17. Qa4 {[%clk 0:02:39]}  Bb6 {[%clk 0:00:53]} 18. Qxc6 {[%clk 0:02:35]}  Qxc6 {[%clk 0:00:45]} 19. Nxc6 {[%clk 0:02:35]}  Ba6 {[%clk 0:00:44]} 20. Rfe1 {[%clk 0:02:31]}  Bc4 {[%clk 0:00:41]} 21. Ne5 {[%clk 0:02:30]}  Bb5 {[%clk 0:00:33]} 22. a4 {[%clk 0:02:29]} 1-0


[Site "https://www.chess.com"]

[Event "Titled Tuesday Blitz July 18 Early 2023"]
[White "Samarth J Rao"]
[Black "Romero Ruscalleda, Josep"]
[WhiteFideId "46652370"]
[BlackFideId "2231859"]
[WhiteElo "2263"]
[BlackElo "2392"]
[Result "1-0"]
[Round "7"]
[TimeControl "180+2"]
[Date "2023.07.18"]
[WhiteClock "0:02:42"]
[BlackClock "0:01:41"]
[Board "154"]

1. Nf3 {[%clk 0:02:50]}  g6 {[%clk 0:03:00]} 2. e4 {[%clk 0:02:49]}  Bg7 {[%clk 0:03:01]} 3. d4 {[%clk 0:02:49]}  d6 {[%clk 0:03:01]} 4. c4 {[%clk 0:02:50]}  Nc6 {[%clk 0:03:00]} 5. d5 {[%clk 0:02:50]}  Ne5 {[%clk 0:02:59]} 6. Nxe5 {[%clk 0:02:50]}  Bxe5 {[%clk 0:03:00]} 7. Be2 {[%clk 0:02:49]}  f5 {[%clk 0:03:00]} 8. exf5 {[%clk 0:02:50]}  Bxf5 {[%clk 0:02:59]} 9. Bd3 {[%clk 0:02:50]}  Qd7 {[%clk 0:02:53]} 10. Bxf5 {[%clk 0:02:46]}  Qxf5 {[%clk 0:02:53]} 11. Nd2 {[%clk 0:02:47]}  O-O-O {[%clk 0:02:45]} 12. Nf3 {[%clk 0:02:46]}  Bg7 {[%clk 0:02:36]} 13. O-O {[%clk 0:02:46]}  Nf6 {[%clk 0:02:34]} 14. Re1 {[%clk 0:02:46]}  Rde8 {[%clk 0:02:32]} 15. Ng5 {[%clk 0:02:46]}  Bh6 {[%clk 0:02:07]} 16. Ne6 {[%clk 0:02:45]}  Bxc1 {[%clk 0:02:06]} 17. Rxc1 {[%clk 0:02:45]}  Ne4 {[%clk 0:01:49]} 18. Qd4 {[%clk 0:02:45]}  Kb8 {[%clk 0:01:41]} 19. Qxe4 {[%clk 0:02:42]} 1-0


[Site "https://www.chess.com"]

[Event "Titled Tuesday Blitz July 18 Early 2023"]
[White "Chernyavsky, Alexander"]
[Black "Zaichenko, Daria"]
[WhiteFideId "24131156"]
[BlackFideId "4197453"]
[WhiteElo "2389"]
[BlackElo "2256"]
[Result "1-0"]
[Round "7"]
[TimeControl "180+2"]
[Date "2023.07.18"]
[WhiteClock "0:01:11"]
[BlackClock "0:01:03"]
[Board "155"]

1. d4 {[%clk 0:03:00]}  d5 {[%clk 0:02:53]} 2. c4 {[%clk 0:03:01]}  e6 {[%clk 0:02:51]} 3. Nc3 {[%clk 0:03:01]}  Be7 {[%clk 0:02:51]} 4. Nf3 {[%clk 0:02:55]}  Nf6 {[%clk 0:02:51]} 5. g3 {[%clk 0:02:56]}  O-O {[%clk 0:02:50]} 6. Bg2 {[%clk 0:02:57]}  Ne4 {[%clk 0:02:50]} 7. O-O {[%clk 0:02:48]}  c6 {[%clk 0:02:47]} 8. Nxe4 {[%clk 0:02:33]}  dxe4 {[%clk 0:02:46]} 9. Ne1 {[%clk 0:02:34]}  f5 {[%clk 0:02:46]} 10. f3 {[%clk 0:02:34]}  exf3 {[%clk 0:02:44]} 11. Nxf3 {[%clk 0:02:29]}  Bf6 {[%clk 0:02:41]} 12. Bf4 {[%clk 0:02:22]}  Nd7 {[%clk 0:02:20]} 13. Qd3 {[%clk 0:02:09]}  Qb6 {[%clk 0:02:15]} 14. Kh1 {[%clk 0:02:03]}  Qxb2 {[%clk 0:02:10]} 15. Rfb1 {[%clk 0:02:02]}  Nc5 {[%clk 0:02:00]} 16. Rxb2 {[%clk 0:01:44]}  Nxd3 {[%clk 0:01:58]} 17. exd3 {[%clk 0:01:44]}  c5 {[%clk 0:01:58]} 18. Be5 {[%clk 0:01:42]}  cxd4 {[%clk 0:01:58]} 19. Bxf6 {[%clk 0:01:34]}  Rxf6 {[%clk 0:01:57]} 20. Nxd4 {[%clk 0:01:35]}  e5 {[%clk 0:01:57]} 21. Nf3 {[%clk 0:01:26]}  e4 {[%clk 0:01:55]} 22. dxe4 {[%clk 0:01:27]}  fxe4 {[%clk 0:01:55]} 23. Ng5 {[%clk 0:01:26]}  e3 {[%clk 0:01:52]} 24. Bd5+ {[%clk 0:01:22]}  Kh8 {[%clk 0:01:47]} 25. Re1 {[%clk 0:01:20]}  g6 {[%clk 0:01:35]} 26. Rxe3 {[%clk 0:01:18]}  Bg4 {[%clk 0:01:03]} 27. Rxb7 {[%clk 0:01:11]} 1-0


[Site "https://www.chess.com"]

[Event "Titled Tuesday Blitz July 18 Early 2023"]
[White "Joshi, Pankaj"]
[Black "Rodriguez Santiago, Jaime"]
[WhiteFideId "5006210"]
[BlackFideId "3100898"]
[WhiteElo "2256"]
[BlackElo "2379"]
[Result "1-0"]
[Round "7"]
[TimeControl "180+2"]
[Date "2023.07.18"]
[WhiteClock "0:00:20"]
[BlackClock "0:00:29"]
[Board "156"]

1. e4 {[%clk 0:03:00]}  c6 {[%clk 0:02:59]} 2. d4 {[%clk 0:03:00]}  d5 {[%clk 0:02:59]} 3. exd5 {[%clk 0:03:01]}  cxd5 {[%clk 0:02:59]} 4. Bd3 {[%clk 0:03:02]}  Nc6 {[%clk 0:02:59]} 5. c3 {[%clk 0:03:03]}  Qc7 {[%clk 0:02:59]} 6. h3 {[%clk 0:03:03]}  g6 {[%clk 0:02:56]} 7. Nf3 {[%clk 0:02:55]}  Bf5 {[%clk 0:02:55]} 8. Be2 {[%clk 0:02:49]}  h5 {[%clk 0:02:46]} 9. O-O {[%clk 0:02:49]}  Nf6 {[%clk 0:02:45]} 10. Bg5 {[%clk 0:02:47]}  Bg7 {[%clk 0:02:45]} 11. Nbd2 {[%clk 0:02:46]}  Ne4 {[%clk 0:02:34]} 12. Nxe4 {[%clk 0:02:24]}  Bxe4 {[%clk 0:02:29]} 13. Nd2 {[%clk 0:02:11]}  Bf5 {[%clk 0:02:27]} 14. Bf3 {[%clk 0:02:08]}  Rd8 {[%clk 0:02:16]} 15. Re1 {[%clk 0:01:15]}  f6 {[%clk 0:02:06]} 16. Bh4 {[%clk 0:01:12]}  O-O {[%clk 0:02:00]} 17. Nf1 {[%clk 0:01:03]}  Qd7 {[%clk 0:01:49]} 18. Ne3 {[%clk 0:00:59]}  Be6 {[%clk 0:01:47]} 19. c4 {[%clk 0:00:53]}  dxc4 {[%clk 0:01:01]} 20. d5 {[%clk 0:00:53]}  Qc8 {[%clk 0:00:59]} 21. Qb1 {[%clk 0:00:49]}  Nd4 {[%clk 0:00:55]} 22. dxe6 {[%clk 0:00:46]}  Nxf3+ {[%clk 0:00:53]} 23. gxf3 {[%clk 0:00:47]}  g5 {[%clk 0:00:51]} 24. Qg6 {[%clk 0:00:37]}  Qxe6 {[%clk 0:00:48]} 25. Nf5 {[%clk 0:00:37]}  Qxf5 {[%clk 0:00:45]} 26. Qxf5 {[%clk 0:00:36]}  gxh4 {[%clk 0:00:46]} 27. Qxh5 {[%clk 0:00:35]}  Rd7 {[%clk 0:00:40]} 28. Kh1 {[%clk 0:00:33]}  e5 {[%clk 0:00:38]} 29. Rg1 {[%clk 0:00:33]}  Rff7 {[%clk 0:00:39]} 30. Rg6 {[%clk 0:00:31]}  Kf8 {[%clk 0:00:39]} 31. Rag1 {[%clk 0:00:31]}  b5 {[%clk 0:00:39]} 32. Qh7 {[%clk 0:00:29]}  a6 {[%clk 0:00:38]} 33. Qxh4 {[%clk 0:00:29]}  Rc7 {[%clk 0:00:34]} 34. Rxg7 {[%clk 0:00:21]}  Rxg7 {[%clk 0:00:29]} 35. Qh8+ {[%clk 0:00:20]} 1-0


[Site "https://www.chess.com"]

[Event "Titled Tuesday Blitz July 18 Early 2023"]
[White "Alain_Otero"]
[Black "Thiel, Thomas"]
[BlackFideId "4615964"]
[WhiteElo "2370"]
[BlackElo "2243"]
[Result "1/2-1/2"]
[Round "7"]
[TimeControl "180+2"]
[Date "2023.07.18"]
[WhiteClock "0:00:07"]
[BlackClock "0:01:00"]
[Board "158"]

1. e4 {[%clk 0:02:59]}  d5 {[%clk 0:02:59]} 2. exd5 {[%clk 0:02:59]}  Nf6 {[%clk 0:02:59]} 3. Bb5+ {[%clk 0:02:59]}  Nbd7 {[%clk 0:02:57]} 4. Nc3 {[%clk 0:02:58]}  a6 {[%clk 0:02:55]} 5. Ba4 {[%clk 0:02:55]}  b5 {[%clk 0:02:55]} 6. Bb3 {[%clk 0:02:55]}  Nc5 {[%clk 0:02:55]} 7. Nge2 {[%clk 0:02:42]}  Bb7 {[%clk 0:02:45]} 8. O-O {[%clk 0:02:31]}  g6 {[%clk 0:02:42]} 9. d4 {[%clk 0:02:18]}  Nxb3 {[%clk 0:02:40]} 10. axb3 {[%clk 0:02:19]}  Bg7 {[%clk 0:02:35]} 11. Nf4 {[%clk 0:02:13]}  Nxd5 {[%clk 0:02:33]} 12. Nfxd5 {[%clk 0:02:10]}  Bxd5 {[%clk 0:02:33]} 13. Nxd5 {[%clk 0:02:04]}  Qxd5 {[%clk 0:02:31]} 14. c3 {[%clk 0:02:04]}  O-O {[%clk 0:02:27]} 15. Re1 {[%clk 0:01:56]}  Rfe8 {[%clk 0:02:27]} 16. b4 {[%clk 0:01:46]}  e5 {[%clk 0:02:25]} 17. dxe5 {[%clk 0:01:42]}  Qxd1 {[%clk 0:02:24]} 18. Rxd1 {[%clk 0:01:43]}  Bxe5 {[%clk 0:02:22]} 19. Bg5 {[%clk 0:01:40]}  Bd6 {[%clk 0:02:12]} 20. Be3 {[%clk 0:01:25]}  Re6 {[%clk 0:02:08]} 21. Bd4 {[%clk 0:01:24]}  Rae8 {[%clk 0:02:05]} 22. g3 {[%clk 0:01:22]}  Bf8 {[%clk 0:01:57]} 23. Be3 {[%clk 0:01:17]}  Rc8 {[%clk 0:01:34]} 24. Ra5 {[%clk 0:01:04]}  c5 {[%clk 0:01:33]} 25. bxc5 {[%clk 0:01:02]}  Bxc5 {[%clk 0:01:34]} 26. Bxc5 {[%clk 0:00:54]}  Rxc5 {[%clk 0:01:34]} 27. Rd8+ {[%clk 0:00:52]}  Kg7 {[%clk 0:01:32]} 28. Ra8 {[%clk 0:00:52]}  Rf5 {[%clk 0:01:21]} 29. Kf1 {[%clk 0:00:20]}  Rd6 {[%clk 0:01:21]} 30. Re8 {[%clk 0:00:17]}  Rd1+ {[%clk 0:01:13]} 31. Re1 {[%clk 0:00:17]}  Rd2 {[%clk 0:01:09]} 32. Re2 {[%clk 0:00:17]}  Rd1+ {[%clk 0:01:09]} 33. Kg2 {[%clk 0:00:16]}  Rf6 {[%clk 0:01:09]} 34. f4 {[%clk 0:00:13]}  h5 {[%clk 0:01:06]} 35. h4 {[%clk 0:00:13]}  Rd3 {[%clk 0:01:05]} 36. Kf2 {[%clk 0:00:12]}  Rc6 {[%clk 0:01:02]} 37. Re3 {[%clk 0:00:09]}  Rd2+ {[%clk 0:01:01]} 38. Re2 {[%clk 0:00:09]}  Rd3 {[%clk 0:01:01]} 39. Re7 {[%clk 0:00:07]}  Rd2+ {[%clk 0:01:00]} 40. Re2 {[%clk 0:00:07]}  Rd3 {[%clk 0:01:00]} 1/2-1/2


[Site "https://www.chess.com"]

[Event "Titled Tuesday Blitz July 18 Early 2023"]
[White "Davidson, Kevin"]
[Black "K2JW"]
[WhiteFideId "2056810"]
[WhiteElo "2368"]
[BlackElo "2358"]
[Result "0-1"]
[Round "7"]
[TimeControl "180+2"]
[Date "2023.07.18"]
[WhiteClock "0:00:00"]
[BlackClock "0:00:22"]
[Board "159"]

1. e4 {[%clk 0:03:00]}  c6 {[%clk 0:02:58]} 2. d4 {[%clk 0:02:45]}  d5 {[%clk 0:02:58]} 3. e5 {[%clk 0:02:44]}  Bf5 {[%clk 0:02:58]} 4. h4 {[%clk 0:02:42]}  h5 {[%clk 0:02:57]} 5. Bg5 {[%clk 0:02:41]}  Qb6 {[%clk 0:02:57]} 6. Bd3 {[%clk 0:02:40]}  Bxd3 {[%clk 0:02:57]} 7. Qxd3 {[%clk 0:02:41]}  Qa6 {[%clk 0:02:55]} 8. Qf3 {[%clk 0:02:30]}  e6 {[%clk 0:02:53]} 9. Ne2 {[%clk 0:02:27]}  c5 {[%clk 0:02:48]} 10. c3 {[%clk 0:02:26]}  Nc6 {[%clk 0:02:41]} 11. Nd2 {[%clk 0:02:25]}  Qb6 {[%clk 0:02:33]} 12. O-O {[%clk 0:02:18]}  cxd4 {[%clk 0:02:30]} 13. cxd4 {[%clk 0:02:18]}  Nge7 {[%clk 0:01:59]} 14. Nb3 {[%clk 0:02:15]}  Nf5 {[%clk 0:01:59]} 15. Rfd1 {[%clk 0:02:03]}  a5 {[%clk 0:01:57]} 16. Rac1 {[%clk 0:01:45]}  a4 {[%clk 0:01:50]} 17. Nc5 {[%clk 0:01:45]}  Bxc5 {[%clk 0:01:43]} 18. dxc5 {[%clk 0:01:42]}  Qc7 {[%clk 0:01:24]} 19. Nf4 {[%clk 0:01:13]}  Nxe5 {[%clk 0:01:18]} 20. Qe2 {[%clk 0:01:13]}  f6 {[%clk 0:00:59]} 21. Nxe6 {[%clk 0:01:09]}  Qd7 {[%clk 0:00:59]} 22. Nf4 {[%clk 0:00:40]}  d4 {[%clk 0:00:58]} 23. Ng6 {[%clk 0:00:32]}  Kf7 {[%clk 0:00:45]} 24. Nxh8+ {[%clk 0:00:27]}  Rxh8 {[%clk 0:00:45]} 25. Bf4 {[%clk 0:00:27]}  Ng6 {[%clk 0:00:33]} 26. Bg3 {[%clk 0:00:22]}  Ngxh4 {[%clk 0:00:24]} 27. Bxh4 {[%clk 0:00:17]}  Nxh4 {[%clk 0:00:25]} 28. Qc4+ {[%clk 0:00:17]}  Qe6 {[%clk 0:00:22]} 29. Qxe6+ {[%clk 0:00:16]}  Kxe6 {[%clk 0:00:23]} 30. Rxd4 {[%clk 0:00:16]}  Nf5 {[%clk 0:00:23]} 31. Re1+ {[%clk 0:00:09]}  Kf7 {[%clk 0:00:24]} 32. Rd7+ {[%clk 0:00:09]}  Kg6 {[%clk 0:00:24]} 33. Rxb7 {[%clk 0:00:08]}  Rc8 {[%clk 0:00:25]} 34. Rc1 {[%clk 0:00:07]}  Nd4 {[%clk 0:00:25]} 35. Kf1 {[%clk 0:00:04]}  Rc6 {[%clk 0:00:25]} 36. Rb6 {[%clk 0:00:04]}  Rc7 {[%clk 0:00:24]} 37. c6 {[%clk 0:00:04]}  h4 {[%clk 0:00:23]} 38. Rc4 {[%clk 0:00:04]}  h3 {[%clk 0:00:22]} 39. gxh3 {[%clk 0:00:03]}  Nf3 {[%clk 0:00:21]} 40. Kg2 {[%clk 0:00:02]}  Ne5 {[%clk 0:00:21]} 41. Rc5 {[%clk 0:00:01]}  Nd3 {[%clk 0:00:21]} 42. Rc3 {[%clk 0:00:01]}  Nf4+ {[%clk 0:00:21]} 43. Kf3 {[%clk 0:00:00]}  Nd5 {[%clk 0:00:22]} 0-1


[Site "https://www.chess.com"]

[Event "Titled Tuesday Blitz July 18 Early 2023"]
[White "Senft, Sean"]
[Black "Tqebuchava, Zurab"]
[WhiteFideId "2044960"]
[BlackFideId "13601113"]
[WhiteElo "2361"]
[BlackElo "2120"]
[Result "1-0"]
[Round "7"]
[TimeControl "180+2"]
[Date "2023.07.18"]
[WhiteClock "0:00:04"]
[BlackClock "0:00:02"]
[Board "161"]

1. d4 {[%clk 0:02:58]}  d6 {[%clk 0:03:00]} 2. c4 {[%clk 0:02:56]}  Nf6 {[%clk 0:03:00]} 3. Nc3 {[%clk 0:02:57]}  Nbd7 {[%clk 0:02:59]} 4. e4 {[%clk 0:02:57]}  e5 {[%clk 0:02:57]} 5. d5 {[%clk 0:02:57]}  g6 {[%clk 0:02:52]} 6. Be2 {[%clk 0:02:57]}  Bg7 {[%clk 0:02:52]} 7. Be3 {[%clk 0:02:57]}  O-O {[%clk 0:02:45]} 8. h3 {[%clk 0:02:57]}  b6 {[%clk 0:02:40]} 9. Nf3 {[%clk 0:02:54]}  Nc5 {[%clk 0:02:33]} 10. Qc2 {[%clk 0:02:53]}  a5 {[%clk 0:02:32]} 11. g4 {[%clk 0:02:45]}  Ne8 {[%clk 0:02:27]} 12. O-O-O {[%clk 0:02:45]}  a4 {[%clk 0:02:21]} 13. Rhg1 {[%clk 0:02:39]}  a3 {[%clk 0:02:19]} 14. b3 {[%clk 0:02:39]}  Kh8 {[%clk 0:02:13]} 15. h4 {[%clk 0:02:38]}  f5 {[%clk 0:02:10]} 16. h5 {[%clk 0:02:14]}  fxg4 {[%clk 0:01:58]} 17. Ng5 {[%clk 0:02:00]}  Rf4 {[%clk 0:01:24]} 18. hxg6 {[%clk 0:01:52]}  Qxg5 {[%clk 0:01:21]} 19. gxh7 {[%clk 0:01:35]}  Nf6 {[%clk 0:01:01]} 20. Rg2 {[%clk 0:01:33]}  Bd7 {[%clk 0:00:58]} 21. Rdg1 {[%clk 0:01:33]}  Rf8 {[%clk 0:00:52]} 22. f3 {[%clk 0:01:07]}  Qg6 {[%clk 0:00:48]} 23. Bxf4 {[%clk 0:01:04]}  exf4 {[%clk 0:00:47]} 24. Bd3 {[%clk 0:00:55]}  g3 {[%clk 0:00:42]} 25. Ne2 {[%clk 0:00:50]}  Nxd3+ {[%clk 0:00:37]} 26. Qxd3 {[%clk 0:00:50]}  Nh5 {[%clk 0:00:37]} 27. Rh1 {[%clk 0:00:45]}  Qg5 {[%clk 0:00:26]} 28. Qd2 {[%clk 0:00:39]}  Qe5 {[%clk 0:00:25]} 29. Kd1 {[%clk 0:00:33]}  Be8 {[%clk 0:00:22]} 30. Qc1 {[%clk 0:00:24]}  Bg6 {[%clk 0:00:18]} 31. Qxa3 {[%clk 0:00:22]}  Qa1+ {[%clk 0:00:17]} 32. Qc1 {[%clk 0:00:23]}  Qxa2 {[%clk 0:00:16]} 33. Qc2 {[%clk 0:00:19]}  Qa1+ {[%clk 0:00:14]} 34. Qc1 {[%clk 0:00:20]}  Qe5 {[%clk 0:00:14]} 35. Rh4 {[%clk 0:00:19]}  Ra8 {[%clk 0:00:13]} 36. Rg4 {[%clk 0:00:17]}  Ra1 {[%clk 0:00:12]} 37. Rxg6 {[%clk 0:00:16]}  Rxc1+ {[%clk 0:00:10]} 38. Kxc1 {[%clk 0:00:16]}  Qa1+ {[%clk 0:00:08]} 39. Kd2 {[%clk 0:00:16]}  Qb2+ {[%clk 0:00:08]} 40. Kd1 {[%clk 0:00:15]}  Qxb3+ {[%clk 0:00:07]} 41. Kd2 {[%clk 0:00:14]}  Qxc4 {[%clk 0:00:07]} 42. Rg5 {[%clk 0:00:13]}  Qb4+ {[%clk 0:00:07]} 43. Kd1 {[%clk 0:00:13]}  Qb1+ {[%clk 0:00:05]} 44. Kd2 {[%clk 0:00:14]}  Qa2+ {[%clk 0:00:05]} 45. Kd1 {[%clk 0:00:14]}  Qa4+ {[%clk 0:00:04]} 46. Kd2 {[%clk 0:00:15]}  Qa5+ {[%clk 0:00:04]} 47. Kd1 {[%clk 0:00:15]}  Qa1+ {[%clk 0:00:04]} 48. Kd2 {[%clk 0:00:15]}  Qa2+ {[%clk 0:00:03]} 49. Kd1 {[%clk 0:00:16]}  b5 {[%clk 0:00:03]} 50. Rxh5 {[%clk 0:00:15]}  b4 {[%clk 0:00:03]} 51. Nxf4 {[%clk 0:00:04]}  Qb1+ {[%clk 0:00:02]} 52. Ke2 {[%clk 0:00:04]}  b3 {[%clk 0:00:02]} 53. Ng6# {[%clk 0:00:04]} 1-0


[Site "https://www.chess.com"]

[Event "Titled Tuesday Blitz July 18 Early 2023"]
[White "Merino Garcia, Rafael II"]
[Black "Dubreuil, Julien"]
[WhiteFideId "2209128"]
[BlackFideId "621285"]
[WhiteElo "2381"]
[BlackElo "2347"]
[Result "0-1"]
[Round "7"]
[TimeControl "180+2"]
[Date "2023.07.18"]
[WhiteClock "0:00:45"]
[BlackClock "0:00:42"]
[Board "165"]

1. d4 {[%clk 0:03:00]}  d5 {[%clk 0:02:59]} 2. Nf3 {[%clk 0:03:01]}  Nf6 {[%clk 0:02:59]} 3. c4 {[%clk 0:03:00]}  e6 {[%clk 0:02:59]} 4. e3 {[%clk 0:02:58]}  c5 {[%clk 0:02:58]} 5. Nc3 {[%clk 0:02:52]}  a6 {[%clk 0:02:58]} 6. a3 {[%clk 0:02:51]}  Nbd7 {[%clk 0:02:57]} 7. cxd5 {[%clk 0:02:45]}  exd5 {[%clk 0:02:56]} 8. Be2 {[%clk 0:02:44]}  c4 {[%clk 0:02:55]} 9. O-O {[%clk 0:02:43]}  Bd6 {[%clk 0:02:55]} 10. Nd2 {[%clk 0:02:31]}  O-O {[%clk 0:02:53]} 11. e4 {[%clk 0:02:31]}  Nxe4 {[%clk 0:02:50]} 12. Ndxe4 {[%clk 0:02:31]}  dxe4 {[%clk 0:02:50]} 13. Bxc4 {[%clk 0:02:24]}  Nf6 {[%clk 0:02:49]} 14. h3 {[%clk 0:02:21]}  Bc7 {[%clk 0:02:42]} 15. Ne2 {[%clk 0:02:06]}  b5 {[%clk 0:02:40]} 16. Bb3 {[%clk 0:02:04]}  Bb7 {[%clk 0:02:34]} 17. Bg5 {[%clk 0:02:04]}  Rc8 {[%clk 0:02:26]} 18. Rc1 {[%clk 0:02:03]}  Qd6 {[%clk 0:02:21]} 19. Bf4 {[%clk 0:02:02]}  Qd7 {[%clk 0:02:22]} 20. Qd2 {[%clk 0:01:52]}  Rfe8 {[%clk 0:02:12]} 21. Rc5 {[%clk 0:01:41]}  Bxf4 {[%clk 0:02:09]} 22. Qxf4 {[%clk 0:01:40]}  Bd5 {[%clk 0:01:58]} 23. Bxd5 {[%clk 0:01:25]}  Nxd5 {[%clk 0:01:57]} 24. Qg5 {[%clk 0:01:24]}  Rcd8 {[%clk 0:01:51]} 25. Rfc1 {[%clk 0:01:18]}  h6 {[%clk 0:01:49]} 26. Qh5 {[%clk 0:01:16]}  Re6 {[%clk 0:01:36]} 27. Ng3 {[%clk 0:01:11]}  Nf4 {[%clk 0:01:32]} 28. Qg4 {[%clk 0:01:06]}  Nd3 {[%clk 0:01:28]} 29. Rc7 {[%clk 0:00:58]}  Nxc1 {[%clk 0:01:15]} 30. Rxd7 {[%clk 0:00:57]}  Rxd7 {[%clk 0:01:15]} 31. Nf5 {[%clk 0:00:55]}  g6 {[%clk 0:01:04]} 32. Nxh6+ {[%clk 0:00:55]}  Kf8 {[%clk 0:01:00]} 33. d5 {[%clk 0:00:50]}  Rxd5 {[%clk 0:00:45]} 34. Qf4 {[%clk 0:00:45]}  Ne2+ {[%clk 0:00:42]} 0-1


[Site "https://www.chess.com"]

[Event "Titled Tuesday Blitz July 18 Early 2023"]
[White "Villarreal, Agustin"]
[Black "Holtel, Jasper"]
[WhiteFideId "125687"]
[BlackFideId "12956376"]
[WhiteElo "2369"]
[BlackElo "2290"]
[Result "0-1"]
[Round "7"]
[TimeControl "180+2"]
[Date "2023.07.18"]
[WhiteClock "0:00:00"]
[BlackClock "0:00:15"]
[Board "166"]

1. e4 {[%clk 0:03:00]}  e6 {[%clk 0:03:00]} 2. d4 {[%clk 0:03:00]}  d5 {[%clk 0:03:00]} 3. Nd2 {[%clk 0:03:00]}  Nf6 {[%clk 0:03:00]} 4. e5 {[%clk 0:03:01]}  Nfd7 {[%clk 0:03:00]} 5. Bd3 {[%clk 0:03:01]}  c5 {[%clk 0:03:01]} 6. c3 {[%clk 0:03:02]}  Nc6 {[%clk 0:03:01]} 7. Ne2 {[%clk 0:03:03]}  cxd4 {[%clk 0:03:01]} 8. cxd4 {[%clk 0:03:04]}  f6 {[%clk 0:03:02]} 9. exf6 {[%clk 0:02:51]}  Nxf6 {[%clk 0:03:03]} 10. O-O {[%clk 0:02:48]}  Bd6 {[%clk 0:03:03]} 11. Nf3 {[%clk 0:02:48]}  Qc7 {[%clk 0:03:02]} 12. b3 {[%clk 0:02:44]}  O-O {[%clk 0:03:00]} 13. Bb2 {[%clk 0:02:44]}  Nh5 {[%clk 0:02:48]} 14. Ng3 {[%clk 0:02:28]}  Nf4 {[%clk 0:02:46]} 15. Rc1 {[%clk 0:02:06]}  Nxd3 {[%clk 0:02:25]} 16. Qxd3 {[%clk 0:02:07]}  Qe7 {[%clk 0:02:13]} 17. Rfe1 {[%clk 0:02:02]}  Bd7 {[%clk 0:02:12]} 18. Re2 {[%clk 0:01:52]}  Rf7 {[%clk 0:02:06]} 19. Rce1 {[%clk 0:01:36]}  Raf8 {[%clk 0:02:05]} 20. Bc1 {[%clk 0:01:23]}  h6 {[%clk 0:01:51]} 21. Ne5 {[%clk 0:00:52]}  Nxe5 {[%clk 0:01:42]} 22. dxe5 {[%clk 0:00:53]}  Bc5 {[%clk 0:01:42]} 23. Be3 {[%clk 0:00:46]}  a6 {[%clk 0:01:37]} 24. Rc2 {[%clk 0:00:37]}  Bxe3 {[%clk 0:00:53]} 25. Qxe3 {[%clk 0:00:38]}  Bc6 {[%clk 0:00:52]} 26. f3 {[%clk 0:00:29]}  Qb4 {[%clk 0:00:44]} 27. Rec1 {[%clk 0:00:24]}  d4 {[%clk 0:00:43]} 28. Qd3 {[%clk 0:00:17]}  Bb5 {[%clk 0:00:40]} 29. Qe4 {[%clk 0:00:16]}  d3 {[%clk 0:00:39]} 30. Rf2 {[%clk 0:00:13]}  Rd8 {[%clk 0:00:32]} 31. Qxb4 {[%clk 0:00:13]}  d2 {[%clk 0:00:29]} 32. Rd1 {[%clk 0:00:14]}  Rc7 {[%clk 0:00:21]} 33. Rfxd2 {[%clk 0:00:13]}  Rxd2 {[%clk 0:00:20]} 34. Rxd2 {[%clk 0:00:14]}  Rc1+ {[%clk 0:00:21]} 35. Kf2 {[%clk 0:00:14]}  Kh7 {[%clk 0:00:21]} 36. Qe4+ {[%clk 0:00:14]}  g6 {[%clk 0:00:18]} 37. Nh5 {[%clk 0:00:13]}  Rf1+ {[%clk 0:00:15]} 38. Kg3 {[%clk 0:00:13]}  Kh8 {[%clk 0:00:14]} 39. Rd8+ {[%clk 0:00:12]}  Kh7 {[%clk 0:00:15]} 40. Nf6+ {[%clk 0:00:00]}  Kg7 {[%clk 0:00:15]} 0-1


[Site "https://www.chess.com"]